fUST/lending_fUST_20250715
["ID","MTS","AMOUNT","RATE_DAILY","PERIOD"]
[372132693,1752533451806,-1158.27,0.00023013,3]
[372132695,1752533451815,-508.69,0.00023013,3]
[372132697,1752533451825,-460.0,0.00023013,3]
[372132699,1752533451835,-460.0,0.00023013,3]
[372132701,1752533451845,-460.0,0.00023013,3]
[372132703,1752533451854,-2126.53,0.00023013,3]
[372132704,1752533451863,-556.81,0.00023013,3]
[372132706,1752533451872,-645.14,0.00023013,3]
[372132708,1752533451882,-1966.85,0.00023013,3]
[372132710,1752533451891,-460.0,0.00023013,3]
[372132712,1752533451900,-460.0,0.00023013,3]
[372132714,1752533451910,-1317.74,0.00023013,3]
[372132716,1752533451919,-460.0,0.00023013,3]
[372132718,1752533451928,-3700.94,0.00023013,3]
[372132720,1752533451938,-151.0,0.00023014,7]
[372132722,1752533451947,-1000.0,0.00023021,2]
[372132724,1752533451956,-504.12455157,0.00023021,2]
[372132726,1752533451966,-1000.0,0.00023021,2]
[372132728,1752533451975,-1000.0,0.00023021,2]
[372132730,1752533451984,-500.8436141,0.00023021,2]
[372132732,1752533451994,-1500.0,0.00023068,2]
[372132734,1752533452005,-1500.0,0.00023068,2]
[372132736,1752533452016,-1500.0,0.00023068,2]
[372132737,1752533452026,-160.0,0.00023099,3]
[372132739,1752533452035,-1567.00065283,0.00023141,8]
[372132741,1752533452045,-417.814892,0.0002315,2]
[372132743,1752533452054,-1004.3431761,0.00023164,2]
[372132745,1752533452064,-260.0,0.00023179,2]
[372132747,1752533452074,-3206.54,0.000232,7]
[372132749,1752533452083,-736.44,0.000232,7]
[372132751,1752533452095,-429.0212778,0.0002326,2]
[372132753,1752533452105,-429.0212778,0.0002326,2]
[372132755,1752533452116,-429.0212778,0.0002326,2]
[372132757,1752533452126,-429.0212778,0.0002326,2]
[372132759,1752533452135,-450.0,0.00023268,2]
[372132761,1752533452144,-460.0,0.00023287,3]
[372132763,1752533452154,-460.0,0.00023287,3]
[372132765,1752533452163,-460.0,0.00023287,3]
[372132767,1752533452172,-604.15,0.00023287,3]
[372132769,1752533452182,-460.0,0.00023287,3]
[372132771,1752533452191,-460.0,0.00023287,3]
[372132773,1752533452201,-460.0,0.00023287,3]
[372132775,1752533452211,-460.0,0.00023287,3]
[372132777,1752533452220,-460.0,0.00023287,3]
[372132779,1752533452230,-460.0,0.00023287,3]
[372132781,1752533452240,-460.0,0.00023287,3]
[372132783,1752533452249,-460.0,0.00023287,3]
[372132785,1752533452258,-460.0,0.00023287,3]
[372132787,1752533452267,-751.61,0.00023287,3]
[372132789,1752533452276,-587.13,0.00023287,3]
[372132790,1752533452288,-460.0,0.00023287,3]
[372132792,1752533452305,-831.11,0.00023287,3]
[372132794,1752533452323,-832.44,0.00023287,3]
[372132796,1752533452333,-460.0,0.00023287,3]
[372132798,1752533452343,-803.81,0.00023287,3]
[372132800,1752533452353,-460.0,0.00023287,3]
[372132802,1752533452362,-460.0,0.00023287,3]
[372132804,1752533452371,-460.0,0.00023287,3]
[372132806,1752533452381,-541.21173746,0.00023287,3]
[372132808,1752533452390,-460.0,0.00023287,3]
[372132810,1752533452399,-460.0,0.00023287,3]
[372132812,1752533452409,-654.99,0.00023287,3]
[372132814,1752533452417,-460.0,0.00023287,3]
[372132816,1752533452427,-570.2,0.00023287,3]
[372132818,1752533452436,-460.0,0.00023287,3]
[372132820,1752533452446,-460.0,0.00023287,3]
[372132822,1752533452456,-460.0,0.00023287,3]
[372132824,1752533452465,-481.84046225,0.00023287,3]
[372132826,1752533452475,-3242.26,0.00023287,3]
[372132828,1752533452484,-460.0,0.00023287,3]
[372132830,1752533452494,-460.0,0.00023287,3]
[372132832,1752533452503,-116.32951059,0.00023287,3]
[372132866,1752533452824,-457.97245164,0.00022191,3]
[372132875,1752533452912,-2.02754836,0.00022191,3]
[372132877,1752533452922,-460.0,0.00022465,3]
[372132879,1752533452931,-343.67048941,0.00023287,3]
[372132881,1752533452941,-461.88236839,0.00023287,3]
[372132883,1752533452950,-460.0,0.00023287,3]
[372132885,1752533452960,-605.83,0.00023287,3]
[372132887,1752533452969,-1100.96,0.00023287,3]
[372132889,1752533452979,-461.72,0.00023287,3]
[372132891,1752533452988,-304.78881809,0.00023287,3]
[372132893,1752533452997,-757.64,0.00023287,3]
[372132895,1752533453010,-460.0,0.00023287,3]
[372132897,1752533453020,-2170.58,0.00023287,3]
[372132899,1752533453029,-460.0,0.00023287,3]
[372132901,1752533453039,-460.0,0.00023287,3]
[372132903,1752533453049,-460.0,0.00023287,3]
[372132905,1752533453059,-460.0,0.00023287,3]
[372132907,1752533453068,-675.21,0.00023287,3]
[372132909,1752533453078,-486.09,0.00023287,3]
[372132911,1752533453088,-79.3399379,0.00023287,3]
[372132913,1752533453101,-3179.2700621,0.00023287,3]
[372132915,1752533453110,-541.33,0.00023287,3]
[372132917,1752533453119,-564.62,0.00023287,3]
[372132919,1752533453128,-1814.97,0.00023287,3]
[372132921,1752533453137,-701.41406369,0.00023287,3]
[372132923,1752533453149,-19.49593631,0.00023287,3]
[372132925,1752533453159,-335.29717197,0.00023287,3]
[372132927,1752533453178,-1455.48728417,0.00023287,3]
[372132930,1752533453189,-1070.24555412,0.00023287,3]
[372132939,1752533453365,-549.50755642,0.00020873,2]
[372132940,1752533453376,-354.42258934,0.00020873,2]
[372132941,1752533453386,-2759.75,0.00020952,10]
[372132942,1752533453396,-2664.83998974,0.00023287,3]
[372132943,1752533453406,-746.44,0.00023287,3]
[372132944,1752533453415,-460.0,0.00023287,3]
[372132945,1752533453425,-577.76,0.00023287,3]
[372132946,1752533453434,-1497.08,0.00023287,3]
[372132947,1752533453444,-1019.17,0.00023287,3]
[372132948,1752533453453,-460.0,0.00023287,3]
[372132949,1752533453463,-460.0,0.00023287,3]
[372132950,1752533453472,-573.07,0.00023287,3]
[372132951,1752533453482,-895.64,0.00023287,3]
[372132952,1752533453492,-633.01,0.00023287,3]
[372132953,1752533453501,-727.47,0.00023287,3]
[372132954,1752533453511,-460.0,0.00023287,3]
[372132955,1752533453520,-460.0,0.00023287,3]
[372132956,1752533453531,-2619.08,0.00023287,3]
[372132957,1752533453540,-862.51,0.00023287,3]
[372132958,1752533453549,-460.0,0.00023287,3]
[372132959,1752533453559,-460.0,0.00023287,3]
[372132960,1752533453568,-2300.28,0.00023287,3]
[372132961,1752533453578,-460.0,0.00023287,3]
[372132962,1752533453587,-3309.28,0.00023287,3]
[372132963,1752533453596,-460.0,0.00023287,3]
[372132964,1752533453606,-576.02,0.00023287,3]
[372132965,1752533453615,-407.73835041,0.00023287,3]
[372132967,1752533453624,-508.59,0.00023287,3]
[372132969,1752533453634,-460.0,0.00023287,3]
[372132971,1752533453643,-460.0,0.00023287,3]
[372132973,1752533453652,-3133.72,0.00023287,3]
[372132975,1752533453661,-975.59,0.00023287,3]
[372132977,1752533453671,-4974.4,0.00023287,3]
[372132979,1752533453680,-759.28,0.00023287,3]
[372132981,1752533453689,-641.45,0.00023287,3]
[372132983,1752533453699,-669.36,0.00023287,3]
[372132985,1752533453708,-460.0,0.00023287,3]
[372132987,1752533453718,-504.07,0.00023287,3]
[372132989,1752533453727,-1181.0,0.00023287,3]
[372132991,1752533453737,-465.55,0.00023287,3]
[372132993,1752533453746,-460.0,0.00023287,3]
[372132994,1752533453756,-1145.72,0.00023287,3]
[372132996,1752533453767,-1158.27,0.00023287,3]
[372132998,1752533453778,-508.69,0.00023287,3]
[372133000,1752533453788,-460.0,0.00023287,3]
[372133002,1752533453800,-460.0,0.00023287,3]
[372133004,1752533453810,-460.0,0.00023287,3]
[372133006,1752533453820,-2126.53,0.00023287,3]
[372133008,1752533453829,-556.81,0.00023287,3]
[372133010,1752533453838,-645.14,0.00023287,3]
[372133012,1752533453847,-1966.85,0.00023287,3]
[372133014,1752533453857,-460.0,0.00023287,3]
[372133016,1752533453866,-460.0,0.00023287,3]
[372133018,1752533453876,-1317.74,0.00023287,3]
[372133020,1752533453885,-547.73,0.00023287,3]
[372133022,1752533453895,-3700.94,0.00023287,3]
[372133024,1752533453904,-611.96605692,0.000233,2]
[372133026,1752533453914,-22151.28,0.000233,7]
[372133028,1752533453924,-30640.58,0.000233,2]
[372133030,1752533453934,-160.0,0.000233,7]
[372133032,1752533453944,-1567.00065283,0.00023314,9]
[372133034,1752533453953,-500.0,0.00023321,2]
[372133036,1752533453963,-500.70822553,0.00023442,2]
[372133038,1752533453972,-1567.00065283,0.00023486,9]
[372133040,1752533453982,-153.0,0.00023534,2]
[372133042,1752533453992,-159.6218677,0.00023534,2]
[372133044,1752533454003,-177.960412,0.00023534,2]
[372133046,1752533454014,-153.0,0.00023534,2]
[372133049,1752533454025,-159.6739465,0.00023534,2]
[372133058,1752533454117,-159.6739465,0.00023534,2]
[372133061,1752533454129,-177.960412,0.00023534,2]
[372133062,1752533454138,-153.0,0.00023534,2]
[372133064,1752533454148,-576.333126,0.00023534,2]
[372133066,1752533454159,-177.960412,0.00023534,2]
[372133069,1752533454168,-159.6739465,0.00023534,2]
[372133070,1752533454178,-153.0,0.00023534,2]
[372133072,1752533454188,-355.2851612,0.00023534,2]
[372133074,1752533454198,-153.0,0.00023534,2]
[372133076,1752533454208,-153.0,0.00023534,2]
[372133078,1752533454218,-500.0,0.00023544,2]
[372133080,1752533454229,-460.0,0.00023561,3]
[372133082,1752533454239,-601.45,0.00023561,3]
[372133084,1752533454250,-460.0,0.00023561,3]
[372133086,1752533454260,-604.15,0.00023561,3]
[372133088,1752533454269,-460.0,0.00023561,3]
[372133090,1752533454279,-460.0,0.00023561,3]
[372133092,1752533454289,-460.0,0.00023561,3]
[372133094,1752533454299,-460.0,0.00023561,3]
[372133096,1752533454309,-460.0,0.00023561,3]
[372133098,1752533454318,-460.0,0.00023561,3]
[372133100,1752533454328,-460.0,0.00023561,3]
[372133102,1752533454338,-751.61,0.00023561,3]
[372133104,1752533454348,-587.13,0.00023561,3]
[372133106,1752533454357,-460.0,0.00023561,3]
[372133108,1752533454366,-831.11,0.00023561,3]
[372133110,1752533454376,-832.44,0.00023561,3]
[372133112,1752533454385,-560.92994817,0.00023561,3]
[372133114,1752533454394,-803.81,0.00023561,3]
[372133116,1752533454404,-330.68105287,0.00023561,3]
[372133118,1752533454414,-460.0,0.00023561,3]
[372133120,1752533454423,-460.0,0.00023561,3]
[372133122,1752533454433,-460.0,0.00023561,3]
[372133124,1752533454442,-460.0,0.00023561,3]
[372133126,1752533454451,-654.99,0.00023561,3]
[372133128,1752533454460,-460.0,0.00023561,3]
[372133129,1752533454470,-570.2,0.00023561,3]
[372133130,1752533454479,-460.0,0.00023561,3]
[372133131,1752533454489,-460.0,0.00023561,3]
[372133132,1752533454498,-460.0,0.00023561,3]
[372133133,1752533454508,-3242.26,0.00023561,3]
[372133134,1752533454518,-460.0,0.00023561,3]
[372133135,1752533454528,-460.0,0.00023561,3]
[372133136,1752533454537,-460.0,0.00023561,3]
[372133137,1752533454547,-605.83,0.00023561,3]
[372133138,1752533454556,-1100.96,0.00023561,3]
[372133139,1752533454566,-461.72,0.00023561,3]
[372133140,1752533454575,-757.64,0.00023561,3]
[372133141,1752533454585,-460.0,0.00023561,3]
[372133142,1752533454594,-2170.58,0.00023561,3]
[372133143,1752533454604,-460.0,0.00023561,3]
[372133144,1752533454613,-460.0,0.00023561,3]
[372133145,1752533454622,-460.0,0.00023561,3]
[372133146,1752533454632,-460.0,0.00023561,3]
[372133147,1752533454641,-675.21,0.00023561,3]
[372133148,1752533454651,-486.09,0.00023561,3]
[372133149,1752533454660,-3258.61,0.00023561,3]
[372133150,1752533454670,-541.33,0.00023561,3]
[372133151,1752533454679,-1814.97,0.00023561,3]
[372133152,1752533454689,-720.91,0.00023561,3]
[372133153,1752533454699,-5525.87,0.00023561,3]
[372133154,1752533454708,-746.44,0.00023561,3]
[372133155,1752533454718,-460.0,0.00023561,3]
[372133156,1752533454727,-1497.08,0.00023561,3]
[372133157,1752533454737,-1019.17,0.00023561,3]
[372133158,1752533454746,-460.0,0.00023561,3]
[372133159,1752533454755,-460.0,0.00023561,3]
[372133160,1752533454765,-573.07,0.00023561,3]
[372133161,1752533454774,-895.64,0.00023561,3]
[372133162,1752533454784,-633.01,0.00023561,3]
[372133163,1752533454793,-727.47,0.00023561,3]
[372133164,1752533454802,-460.0,0.00023561,3]
[372133165,1752533454812,-460.0,0.00023561,3]
[372133166,1752533454822,-2619.08,0.00023561,3]
[372133167,1752533454831,-862.51,0.00023561,3]
[372133168,1752533454840,-460.0,0.00023561,3]
[372133169,1752533454850,-460.0,0.00023561,3]
[372133170,1752533454859,-2300.28,0.00023561,3]
[372133171,1752533454868,-460.0,0.00023561,3]
[372133172,1752533454878,-3309.28,0.00023561,3]
[372133173,1752533454887,-608.84089523,0.00023561,3]
[372133174,1752533454896,-576.02,0.00023561,3]
[372133175,1752533454906,-508.59,0.00023561,3]
[372133176,1752533454916,-460.0,0.00023561,3]
[372133177,1752533454925,-254.16,0.00023561,3]
[372133178,1752533454935,-3133.72,0.00023561,3]
[372133179,1752533454944,-975.59,0.00023561,3]
[372133180,1752533454954,-4974.4,0.00023561,3]
[372133181,1752533454963,-759.28,0.00023561,3]
[372133182,1752533454973,-641.45,0.00023561,3]
[372133183,1752533454982,-669.36,0.00023561,3]
[372133184,1752533454992,-460.0,0.00023561,3]
[372133185,1752533455004,-504.07,0.00023561,3]
[372133186,1752533455015,-1181.0,0.00023561,3]
[372133187,1752533455025,-465.55,0.00023561,3]
[372133188,1752533455034,-460.0,0.00023561,3]
[372133189,1752533455044,-1145.72,0.00023561,3]
[372133190,1752533455054,-1158.27,0.00023561,3]
[372133191,1752533455064,-508.69,0.00023561,3]
[372133192,1752533455073,-460.0,0.00023561,3]
[372133193,1752533455084,-460.0,0.00023561,3]
[372133194,1752533455094,-2126.53,0.00023561,3]
[372133195,1752533455103,-556.81,0.00023561,3]
[372133196,1752533455112,-645.14,0.00023561,3]
[372133197,1752533455122,-1966.85,0.00023561,3]
[372133198,1752533455132,-460.0,0.00023561,3]
[372133199,1752533455141,-460.0,0.00023561,3]
[372133200,1752533455151,-1317.74,0.00023561,3]
[372133201,1752533455160,-1043.07461285,0.00023561,3]
[372133202,1752533455174,-2657.86538715,0.00023561,3]
[372133203,1752533455184,-1009.81140202,0.00023568,2]
[372133204,1752533455193,-1500.0,0.00023568,2]
[372133205,1752533455203,-156.19728545,0.00023568,2]
[372133206,1752533455212,-500.0,0.00023616,2]
[372133207,1752533455221,-1500.0,0.00023616,2]
[372133208,1752533455231,-1500.0,0.00023616,2]
[372133209,1752533455240,-1567.00065283,0.00023659,9]
[372133210,1752533455250,-360.0,0.00023727,2]
[372133211,1752533455260,-303.55199999,0.00023801,2]
[372133212,1752533455269,-600.0,0.00023816,2]
[372133213,1752533455280,-324.72754999,0.00023827,2]
[372133214,1752533455290,-633.5565,0.0002383,2]
[372133215,1752533455299,-1567.00065283,0.00023831,10]
[372133216,1752533455309,-460.0,0.00023835,3]
[372133217,1752533455319,-460.0,0.00023835,3]
[372133218,1752533455329,-158.61934561,0.00023835,3]
[372133219,1752533455370,-445.53065439,0.00023835,3]
[372133220,1752533455379,-323.37367279,0.00023835,3]
[372133221,1752533455389,-262.22361929,0.00023835,3]
[372133225,1752533457267,-197.77638071,0.00023835,3]
[372133226,1752533457277,-460.0,0.00023835,3]
[372133227,1752533457287,-460.0,0.00023835,3]
[372133228,1752533457297,-460.0,0.00023835,3]
[372133229,1752533457306,-460.0,0.00023835,3]
[372133230,1752533457316,-460.0,0.00023835,3]
[372133231,1752533457326,-751.61,0.00023835,3]
[372133233,1752533457336,-587.13,0.00023835,3]
[372133235,1752533457345,-460.0,0.00023835,3]
[372133237,1752533457355,-831.11,0.00023835,3]
[372133238,1752533457364,-832.44,0.00023835,3]
[372133240,1752533457374,-803.81,0.00023835,3]
[372133241,1752533457383,-460.0,0.00023835,3]
[372133242,1752533457392,-358.02,0.00023835,3]
[372133243,1752533457405,-460.0,0.00023835,3]
[372133244,1752533457414,-366.91657826,0.00023835,3]
[372133245,1752533457583,-87.34676057,0.00021726,2]
[372133246,1752533457595,-301.40038281,0.00021726,2]
[372133247,1752533457608,-515.18300237,0.00021726,2]
[372133248,1752533457617,-903.93014575,0.00022578,2]
[372133249,1752533457626,-93.08342174,0.00023835,3]
[372133250,1752533457636,-654.99,0.00023835,3]
[372133251,1752533457645,-169.92,0.00023835,3]
[372133252,1752533457654,-570.2,0.00023835,3]
[372133253,1752533457663,-460.0,0.00023835,3]
[372133254,1752533457673,-460.0,0.00023835,3]
[372133255,1752533457683,-460.0,0.00023835,3]
[372133256,1752533457692,-3242.26,0.00023835,3]
[372133257,1752533457702,-460.0,0.00023835,3]
[372133258,1752533457711,-460.0,0.00023835,3]
[372133259,1752533457721,-460.0,0.00023835,3]
[372133260,1752533457730,-605.83,0.00023835,3]
[372133261,1752533457740,-1100.96,0.00023835,3]
[372133262,1752533457750,-461.72,0.00023835,3]
[372133263,1752533457761,-757.64,0.00023835,3]
[372133264,1752533457770,-460.0,0.00023835,3]
[372133265,1752533457779,-2170.58,0.00023835,3]
[372133266,1752533457790,-460.0,0.00023835,3]
[372133267,1752533457800,-460.0,0.00023835,3]
[372133268,1752533457809,-460.0,0.00023835,3]
[372133269,1752533457819,-460.0,0.00023835,3]
[372133270,1752533457828,-675.21,0.00023835,3]
[372133271,1752533457837,-486.09,0.00023835,3]
[372133272,1752533457847,-3258.61,0.00023835,3]
[372133273,1752533457856,-541.33,0.00023835,3]
[372133274,1752533457866,-1814.97,0.00023835,3]
[372133275,1752533457875,-720.91,0.00023835,3]
[372133276,1752533457885,-5525.87,0.00023835,3]
[372133277,1752533457895,-746.44,0.00023835,3]
[372133278,1752533457904,-460.0,0.00023835,3]
[372133279,1752533457914,-1497.08,0.00023835,3]
[372133280,1752533457924,-1019.17,0.00023835,3]
[372133281,1752533457933,-460.0,0.00023835,3]
[372133282,1752533457943,-460.0,0.00023835,3]
[372133283,1752533457952,-573.07,0.00023835,3]
[372133284,1752533457962,-895.64,0.00023835,3]
[372133285,1752533457971,-633.01,0.00023835,3]
[372133286,1752533457980,-727.47,0.00023835,3]
[372133287,1752533457989,-460.0,0.00023835,3]
[372133288,1752533458000,-460.0,0.00023835,3]
[372133289,1752533458010,-2619.08,0.00023835,3]
[372133290,1752533458022,-862.51,0.00023835,3]
[372133291,1752533458033,-460.0,0.00023835,3]
[372133292,1752533458044,-460.0,0.00023835,3]
[372133293,1752533458054,-2300.28,0.00023835,3]
[372133294,1752533458065,-3309.28,0.00023835,3]
[372133295,1752533458075,-576.02,0.00023835,3]
[372133296,1752533458084,-508.59,0.00023835,3]
[372133297,1752533458095,-460.0,0.00023835,3]
[372133298,1752533458104,-3133.72,0.00023835,3]
[372133299,1752533458114,-975.59,0.00023835,3]
[372133300,1752533458123,-4974.4,0.00023835,3]
[372133301,1752533458133,-759.28,0.00023835,3]
[372133302,1752533458143,-641.45,0.00023835,3]
[372133303,1752533458152,-669.36,0.00023835,3]
[372133304,1752533458161,-460.0,0.00023835,3]
[372133305,1752533458171,-504.07,0.00023835,3]
[372133306,1752533458181,-1181.0,0.00023835,3]
[372133307,1752533458191,-465.55,0.00023835,3]
[372133308,1752533458200,-190.84290686,0.00023835,3]
[372133309,1752533458210,-1145.72,0.00023835,3]
[372133310,1752533458219,-1158.27,0.00023835,3]
[372133311,1752533458230,-508.69,0.00023835,3]
[372133312,1752533458239,-460.0,0.00023835,3]
[372133313,1752533458249,-460.0,0.00023835,3]
[372133314,1752533458325,-2126.53,0.00023835,3]
[372133315,1752533458340,-556.81,0.00023835,3]
[372133316,1752533458350,-645.14,0.00023835,3]
[372133317,1752533458359,-1966.85,0.00023835,3]
[372133318,1752533458368,-154.83309416,0.00023835,3]
[372133319,1752533458378,-460.0,0.00023835,3]
[372133320,1752533458388,-1317.74,0.00023835,3]
[372133321,1752533458397,-3700.94,0.00023835,3]
[372133322,1752533458407,-686.33276866,0.000239,2]
[372133323,1752533458417,-193.67,0.00023922,14]
[372133324,1752533458426,-500.0,0.00023927,2]
[372133325,1752533458436,-633.5565,0.0002393,2]
[372133326,1752533458446,-5000.0,0.0002395,3]
[372133327,1752533458455,-838.70323114,0.00024,7]
[372133328,1752533458465,-215.47013733,0.00024,7]
[372133329,1752533458475,-525.46609069,0.00024,7]
[372133330,1752533458484,-525.46609069,0.00024,10]
[372133331,1752533458494,-230.73061749,0.00024,7]
[372133332,1752533458504,-230.73061749,0.00024,10]
[372133333,1752533458513,-1567.00065283,0.00024003,10]
[372133334,1752533458523,-324.72754999,0.0002404,2]
[372133335,1752533458532,-215.0738,0.00024077,2]
[372133336,1752533458542,-153.0,0.00024082,2]
[372133337,1752533458552,-189.82875,0.00024109,7]
[372133338,1752533458561,-189.82875,0.00024109,7]
[372133339,1752533458572,-460.0,0.00024109,3]
[372133340,1752533458582,-460.0,0.00024109,3]
[372133341,1752533458591,-604.15,0.00024109,3]
[372133342,1752533458600,-460.0,0.00024109,3]
[372133343,1752533458610,-497.97701784,0.00024109,3]
[372133344,1752533458619,-460.0,0.00024109,3]
[372133345,1752533458628,-460.0,0.00024109,3]
[372133346,1752533458638,-460.0,0.00024109,3]
[372133347,1752533458647,-288.04854768,0.00024109,3]
[372133348,1752533458656,-751.61,0.00024109,3]
[372133349,1752533458666,-587.13,0.00024109,3]
[372133350,1752533458675,-460.0,0.00024109,3]
[372133351,1752533458686,-831.11,0.00024109,3]
[372133352,1752533458698,-832.44,0.00024109,3]
[372133353,1752533458710,-803.81,0.00024109,3]
[372133354,1752533458721,-460.0,0.00024109,3]
[372133355,1752533458731,-460.0,0.00024109,3]
[372133356,1752533458741,-460.0,0.00024109,3]
[372133357,1752533458751,-654.99,0.00024109,3]
[372133358,1752533458762,-570.2,0.00024109,3]
[372133359,1752533458771,-257.79,0.00024109,3]
[372133360,1752533458781,-460.0,0.00024109,3]
[372133361,1752533458790,-460.0,0.00024109,3]
[372133362,1752533458800,-3242.26,0.00024109,3]
[372133363,1752533458810,-595.43,0.00024109,3]
[372133364,1752533458820,-460.0,0.00024109,3]
[372133365,1752533458829,-460.0,0.00024109,3]
[372133366,1752533458840,-605.83,0.00024109,3]
[372133367,1752533458850,-1100.96,0.00024109,3]
[372133368,1752533458859,-461.72,0.00024109,3]
[372133369,1752533458869,-757.64,0.00024109,3]
[372133370,1752533458878,-460.0,0.00024109,3]
[372133371,1752533458888,-2170.58,0.00024109,3]
[372133372,1752533458898,-460.0,0.00024109,3]
[372133373,1752533458908,-353.10513331,0.00024109,3]
[372133374,1752533458917,-460.0,0.00024109,3]
[372133375,1752533458926,-675.21,0.00024109,3]
[372133376,1752533458936,-486.09,0.00024109,3]
[372133377,1752533458945,-3258.61,0.00024109,3]
[372133378,1752533458955,-541.33,0.00024109,3]
[372133379,1752533458964,-1814.97,0.00024109,3]
[372133380,1752533458974,-720.91,0.00024109,3]
[372133381,1752533458983,-5525.87,0.00024109,3]
[372133382,1752533458993,-746.44,0.00024109,3]
[372133383,1752533459005,-460.0,0.00024109,3]
[372133384,1752533459019,-1497.08,0.00024109,3]
[372133385,1752533459030,-1019.17,0.00024109,3]
[372133386,1752533459039,-460.0,0.00024109,3]
[372133387,1752533459049,-573.07,0.00024109,3]
[372133388,1752533459059,-895.64,0.00024109,3]
[372133389,1752533459069,-633.01,0.00024109,3]
[372133390,1752533459079,-727.47,0.00024109,3]
[372133391,1752533459091,-460.0,0.00024109,3]
[372133392,1752533459100,-460.0,0.00024109,3]
[372133393,1752533459110,-2619.08,0.00024109,3]
[372133394,1752533459119,-862.51,0.00024109,3]
[372133395,1752533459129,-460.0,0.00024109,3]
[372133396,1752533459138,-460.0,0.00024109,3]
[372133397,1752533459147,-2300.28,0.00024109,3]
[372133398,1752533459157,-3309.28,0.00024109,3]
[372133399,1752533459166,-576.02,0.00024109,3]
[372133400,1752533459176,-508.59,0.00024109,3]
[372133401,1752533459186,-460.0,0.00024109,3]
[372133402,1752533459196,-3133.72,0.00024109,3]
[372133403,1752533459206,-975.59,0.00024109,3]
[372133404,1752533459215,-4974.4,0.00024109,3]
[372133405,1752533459225,-759.28,0.00024109,3]
[372133406,1752533459235,-641.45,0.00024109,3]
[372133407,1752533459245,-669.36,0.00024109,3]
[372133408,1752533459255,-460.0,0.00024109,3]
[372133409,1752533459265,-504.07,0.00024109,3]
[372133410,1752533459274,-1181.0,0.00024109,3]
[372133411,1752533459284,-465.55,0.00024109,3]
[372133412,1752533459293,-1145.72,0.00024109,3]
[372133413,1752533459303,-1158.27,0.00024109,3]
[372133414,1752533459312,-508.69,0.00024109,3]
[372133415,1752533459322,-460.0,0.00024109,3]
[372133416,1752533459331,-460.0,0.00024109,3]
[372133417,1752533459341,-2126.53,0.00024109,3]
[372133418,1752533459351,-556.81,0.00024109,3]
[372133419,1752533459360,-645.14,0.00024109,3]
[372133420,1752533459370,-1966.85,0.00024109,3]
[372133421,1752533459380,-410.19535191,0.00024109,3]
[372133422,1752533459389,-1317.74,0.00024109,3]
[372133423,1752533459399,-3700.94,0.00024109,3]
[372133424,1752533459470,-500.0,0.00024116,2]
[372133425,1752533459479,-1567.00065283,0.00024176,10]
[372133427,1752533459489,-689.8400366,0.00024247,2]
[372133429,1752533459499,-324.72754999,0.00024254,2]
[372133431,1752533459509,-460.0,0.00024275,2]
[372133433,1752533459518,-16623.59042759,0.00024283,2]